[Event "Titled Tuesday Blitz March 22 Early 2022"]
[White "Boros, Denes"]
[Black "Krysa, Leandro"]
[WhiteFideId "722340"]
[BlackFideId "116807"]
[WhiteElo "2464"]
[BlackElo "2490"]
[Result "1-0"]
[Round "07"]
[TimeControl "180+1"]
[Date "2022.03.22"]
[WhiteClock "0:00:36"]
[BlackClock "0:00:14"]

1. e4 {[%clk 0:03:00]}  e5 {[%clk 0:02:59]} 2. Nf3 {[%clk 0:03:00]}  Nf6 {[%clk 0:03:00]} 3. Nc3 {[%clk 0:02:59]}  Nc6 {[%clk 0:02:58]} 4. d4 {[%clk 0:02:59]}  exd4 {[%clk 0:02:57]} 5. Nxd4 {[%clk 0:03:00]}  Bb4 {[%clk 0:02:56]} 6. Nxc6 {[%clk 0:03:01]}  bxc6 {[%clk 0:02:56]} 7. Bd3 {[%clk 0:03:01]}  O-O {[%clk 0:02:55]} 8. O-O {[%clk 0:03:02]}  d5 {[%clk 0:02:55]} 9. exd5 {[%clk 0:03:02]}  cxd5 {[%clk 0:02:55]} 10. Qf3 {[%clk 0:03:02]}  Re8 {[%clk 0:02:49]} 11. Bg5 {[%clk 0:03:00]}  c6 {[%clk 0:02:44]} 12. Rae1 {[%clk 0:02:49]}  Rxe1 {[%clk 0:02:41]} 13. Rxe1 {[%clk 0:02:50]}  Be6 {[%clk 0:02:41]} 14. a3 {[%clk 0:02:49]}  Be7 {[%clk 0:02:37]} 15. Ne2 {[%clk 0:02:48]}  h6 {[%clk 0:02:34]} 16. Bh4 {[%clk 0:02:42]}  Bg4 {[%clk 0:02:18]} 17. Qe3 {[%clk 0:02:40]}  Bf8 {[%clk 0:01:57]} 18. Qd4 {[%clk 0:02:23]}  Bxe2 {[%clk 0:01:28]} 19. Rxe2 {[%clk 0:02:24]}  Qd6 {[%clk 0:01:25]} 20. Bg3 {[%clk 0:01:58]}  Qc5 {[%clk 0:01:24]} 21. Qa4 {[%clk 0:01:52]}  Nd7 {[%clk 0:01:16]} 22. h4 {[%clk 0:01:46]}  a5 {[%clk 0:01:06]} 23. Kh2 {[%clk 0:01:41]}  Rc8 {[%clk 0:00:59]} 24. Bf5 {[%clk 0:01:39]}  Qa7 {[%clk 0:00:50]} 25. c4 {[%clk 0:01:34]}  Ra8 {[%clk 0:00:46]} 26. Qxc6 {[%clk 0:01:21]}  Nf6 {[%clk 0:00:38]} 27. cxd5 {[%clk 0:01:19]}  Rd8 {[%clk 0:00:38]} 28. d6 {[%clk 0:01:16]}  Nh5 {[%clk 0:00:37]} 29. Re8 {[%clk 0:01:04]}  Qb8 {[%clk 0:00:26]} 30. d7 {[%clk 0:00:39]}  Nxg3 {[%clk 0:00:25]} 31. fxg3 {[%clk 0:00:40]}  g6 {[%clk 0:00:14]} 32. Qc8 {[%clk 0:00:36]} 1-0


[Site "https://www.chess.com"]

[Event "Titled Tuesday Blitz March 22 Early 2022"]
[White "Brodowski, Piotr"]
[Black "Shtyka, Sergey"]
[WhiteFideId "1124480"]
[BlackFideId "4138465"]
[WhiteElo "2422"]
[BlackElo "2014"]
[Result "0-1"]
[Round "07"]
[TimeControl "180+1"]
[Date "2022.03.22"]
[WhiteClock "0:00:39"]
[BlackClock "0:00:47"]

1. e4 {[%clk 0:02:59]}  c5 {[%clk 0:02:55]} 2. Nf3 {[%clk 0:02:58]}  d6 {[%clk 0:02:54]} 3. Bb5+ {[%clk 0:02:58]}  Nd7 {[%clk 0:02:53]} 4. Ba4 {[%clk 0:02:56]}  g6 {[%clk 0:02:53]} 5. O-O {[%clk 0:02:55]}  Bg7 {[%clk 0:02:54]} 6. Re1 {[%clk 0:02:53]}  Nf6 {[%clk 0:02:53]} 7. c3 {[%clk 0:02:54]}  O-O {[%clk 0:02:52]} 8. d4 {[%clk 0:02:54]}  a6 {[%clk 0:02:49]} 9. h3 {[%clk 0:02:48]}  b5 {[%clk 0:02:48]} 10. Bc2 {[%clk 0:02:47]}  Bb7 {[%clk 0:02:46]} 11. a4 {[%clk 0:02:46]}  e5 {[%clk 0:02:43]} 12. Nbd2 {[%clk 0:02:40]}  exd4 {[%clk 0:02:39]} 13. cxd4 {[%clk 0:02:40]}  Re8 {[%clk 0:02:38]} 14. d5 {[%clk 0:02:40]}  c4 {[%clk 0:02:35]} 15. a5 {[%clk 0:02:26]}  Nc5 {[%clk 0:02:30]} 16. Ra3 {[%clk 0:01:35]}  Nfd7 {[%clk 0:01:47]} 17. Nf1 {[%clk 0:01:13]}  b4 {[%clk 0:01:31]} 18. Ra4 {[%clk 0:01:11]}  Nxa4 {[%clk 0:01:30]} 19. Bxa4 {[%clk 0:01:09]}  Re7 {[%clk 0:01:22]} 20. Bg5 {[%clk 0:01:06]}  f6 {[%clk 0:01:22]} 21. Bd2 {[%clk 0:01:01]}  Qxa5 {[%clk 0:01:19]} 22. Nd4 {[%clk 0:00:59]}  Nc5 {[%clk 0:01:10]} 23. Ng3 {[%clk 0:00:52]}  Qxa4 {[%clk 0:01:06]} 24. Qxa4 {[%clk 0:00:49]}  Nxa4 {[%clk 0:01:05]} 25. Bxb4 {[%clk 0:00:49]}  Nc5 {[%clk 0:01:04]} 26. Rc1 {[%clk 0:00:47]}  Nxe4 {[%clk 0:00:58]} 27. Re1 {[%clk 0:00:39]}  Rae8 {[%clk 0:00:47]} 0-1


[Site "https://www.chess.com"]

[Event "Titled Tuesday Blitz March 22 Early 2022"]
[White "Bryakin, Mikhail"]
[Black "Griffith, Kyron"]
[WhiteFideId "4165314"]
[BlackFideId "2046318"]
[WhiteElo "2417"]
[BlackElo "2232"]
[Result "0-1"]
[Round "07"]
[TimeControl "180+1"]
[Date "2022.03.22"]
[WhiteClock "0:00:47"]
[BlackClock "0:00:26"]

1. e4 {[%clk 0:03:00]}  c5 {[%clk 0:02:58]} 2. c4 {[%clk 0:03:00]}  Nc6 {[%clk 0:02:57]} 3. Nf3 {[%clk 0:03:01]}  g6 {[%clk 0:02:57]} 4. d4 {[%clk 0:02:59]}  cxd4 {[%clk 0:02:58]} 5. Nxd4 {[%clk 0:03:00]}  Bg7 {[%clk 0:02:55]} 6. Be3 {[%clk 0:03:00]}  Nf6 {[%clk 0:02:56]} 7. Nc3 {[%clk 0:02:59]}  O-O {[%clk 0:02:52]} 8. Be2 {[%clk 0:02:59]}  d6 {[%clk 0:02:49]} 9. O-O {[%clk 0:02:59]}  Nxd4 {[%clk 0:02:46]} 10. Bxd4 {[%clk 0:02:59]}  Be6 {[%clk 0:02:46]} 11. b3 {[%clk 0:02:58]}  a6 {[%clk 0:02:45]} 12. Rc1 {[%clk 0:02:54]}  Qa5 {[%clk 0:02:45]} 13. f4 {[%clk 0:02:50]}  b5 {[%clk 0:02:29]} 14. cxb5 {[%clk 0:02:46]}  axb5 {[%clk 0:02:28]} 15. Bxb5 {[%clk 0:02:39]}  Nxe4 {[%clk 0:02:15]} 16. Bxg7 {[%clk 0:02:30]}  Kxg7 {[%clk 0:02:15]} 17. Qd4+ {[%clk 0:02:25]}  Nf6 {[%clk 0:02:15]} 18. Ba4 {[%clk 0:02:05]}  Rab8 {[%clk 0:02:05]} 19. h3 {[%clk 0:01:52]}  Rb4 {[%clk 0:02:03]} 20. Qe3 {[%clk 0:01:53]}  Rc8 {[%clk 0:01:56]} 21. Ne2 {[%clk 0:01:46]}  Re4 {[%clk 0:01:45]} 22. Qd3 {[%clk 0:01:38]}  Qb6+ {[%clk 0:01:34]} 23. Kh2 {[%clk 0:01:28]}  Re3 {[%clk 0:01:24]} 24. Qb5 {[%clk 0:01:28]}  Qxb5 {[%clk 0:01:18]} 25. Bxb5 {[%clk 0:01:29]}  Rb8 {[%clk 0:01:17]} 26. Nd4 {[%clk 0:01:24]}  Bd5 {[%clk 0:01:11]} 27. Rfe1 {[%clk 0:01:18]}  e5 {[%clk 0:00:54]} 28. Nc6 {[%clk 0:00:54]}  Rxe1 {[%clk 0:00:49]} 29. Rxe1 {[%clk 0:00:50]}  Rxb5 {[%clk 0:00:48]} 30. fxe5 {[%clk 0:00:50]}  Bxc6 {[%clk 0:00:45]} 31. exf6+ {[%clk 0:00:49]}  Kxf6 {[%clk 0:00:46]} 32. Rd1 {[%clk 0:00:49]}  Rd5 {[%clk 0:00:44]} 33. Rc1 {[%clk 0:00:48]}  Rc5 {[%clk 0:00:39]} 34. Rd1 {[%clk 0:00:47]}  Ke5 {[%clk 0:00:38]} 35. Rd2 {[%clk 0:00:46]}  Be4 {[%clk 0:00:36]} 36. b4 {[%clk 0:00:45]}  Rc2 {[%clk 0:00:32]} 37. Rxc2 {[%clk 0:00:45]}  Bxc2 {[%clk 0:00:33]} 38. Kg3 {[%clk 0:00:46]}  Ba4 {[%clk 0:00:31]} 39. Kf2 {[%clk 0:00:46]}  Kd4 {[%clk 0:00:31]} 40. Kf3 {[%clk 0:00:47]}  f6 {[%clk 0:00:26]} 41. a3 {[%clk 0:00:47]}  d5 {[%clk 0:00:26]} 0-1


[Site "https://www.chess.com"]

[Event "Titled Tuesday Blitz March 22 Early 2022"]
[White "Ciolacu, Alessia-Mihaela"]
[Black "Suarez Uriel, Adrian"]
[WhiteFideId "1252640"]
[BlackFideId "22230874"]
[WhiteElo "1777"]
[BlackElo "2316"]
[Result "0-1"]
[Round "07"]
[TimeControl "180+1"]
[Date "2022.03.22"]
[WhiteClock "0:01:13"]
[BlackClock "0:02:16"]

1. Nf3 {[%clk 0:03:00]}  Nf6 {[%clk 0:02:59]} 2. c4 {[%clk 0:03:01]}  b6 {[%clk 0:02:59]} 3. b3 {[%clk 0:02:58]}  Bb7 {[%clk 0:02:59]} 4. Bb2 {[%clk 0:02:58]}  g6 {[%clk 0:03:00]} 5. g3 {[%clk 0:02:57]}  Bg7 {[%clk 0:03:00]} 6. Bg2 {[%clk 0:02:57]}  O-O {[%clk 0:03:00]} 7. O-O {[%clk 0:02:57]}  e6 {[%clk 0:03:01]} 8. d4 {[%clk 0:02:57]}  Qe7 {[%clk 0:03:00]} 9. Nc3 {[%clk 0:02:57]}  c5 {[%clk 0:03:00]} 10. d5 {[%clk 0:02:56]}  exd5 {[%clk 0:02:59]} 11. cxd5 {[%clk 0:02:56]}  d6 {[%clk 0:02:58]} 12. Qc2 {[%clk 0:02:53]}  Nbd7 {[%clk 0:02:57]} 13. e4 {[%clk 0:02:52]}  a6 {[%clk 0:02:58]} 14. a4 {[%clk 0:02:48]}  Ng4 {[%clk 0:02:58]} 15. h3 {[%clk 0:02:45]}  Nge5 {[%clk 0:02:57]} 16. Nxe5 {[%clk 0:02:45]}  Nxe5 {[%clk 0:02:56]} 17. f4 {[%clk 0:02:45]}  Nd7 {[%clk 0:02:56]} 18. Rfe1 {[%clk 0:02:39]}  Rae8 {[%clk 0:02:51]} 19. e5 {[%clk 0:02:36]}  dxe5 {[%clk 0:02:43]} 20. d6 {[%clk 0:02:36]}  Qxd6 {[%clk 0:02:43]} 21. Bxb7 {[%clk 0:02:35]}  exf4 {[%clk 0:02:44]} 22. Ne4 {[%clk 0:02:28]}  Bd4+ {[%clk 0:02:43]} 23. Kg2 {[%clk 0:02:24]}  Qc7 {[%clk 0:02:42]} 24. Bxd4 {[%clk 0:02:20]}  Qxb7 {[%clk 0:02:41]} 25. Kg1 {[%clk 0:02:08]}  cxd4 {[%clk 0:02:40]} 26. gxf4 {[%clk 0:01:57]}  Re6 {[%clk 0:02:39]} 27. Ng5 {[%clk 0:01:54]}  Rxe1+ {[%clk 0:02:37]} 28. Rxe1 {[%clk 0:01:55]}  Nc5 {[%clk 0:02:35]} 29. Qc4 {[%clk 0:01:45]}  d3 {[%clk 0:02:27]} 30. f5 {[%clk 0:01:40]}  d2 {[%clk 0:02:25]} 31. Rd1 {[%clk 0:01:39]}  Qe7 {[%clk 0:02:25]} 32. Qf4 {[%clk 0:01:28]}  Qe1+ {[%clk 0:02:25]} 33. Qf1 {[%clk 0:01:23]}  Qe3+ {[%clk 0:02:17]} 34. Kh1 {[%clk 0:01:19]}  Qxg5 {[%clk 0:02:17]} 35. f6 {[%clk 0:01:18]}  Ne4 {[%clk 0:02:16]} 36. Qd3 {[%clk 0:01:13]}  Nf2+ {[%clk 0:02:16]} 0-1


[Site "https://www.chess.com"]

[Event "Titled Tuesday Blitz March 22 Early 2022"]
[White "Coto Mederos, Michel"]
[Black "Koridze, Lile"]
[WhiteFideId "3508528"]
[BlackFideId "13612514"]
[WhiteElo "2427"]
[BlackElo "1999"]
[Result "1-0"]
[Round "07"]
[TimeControl "180+1"]
[Date "2022.03.22"]
[WhiteClock "0:01:13"]
[BlackClock "0:01:33"]

1. c4 {[%clk 0:03:00]}  e5 {[%clk 0:03:00]} 2. Nc3 {[%clk 0:03:00]}  Nf6 {[%clk 0:03:00]} 3. Nf3 {[%clk 0:03:00]}  Nc6 {[%clk 0:03:00]} 4. e4 {[%clk 0:03:00]}  Bc5 {[%clk 0:02:57]} 5. Nxe5 {[%clk 0:02:59]}  Nxe5 {[%clk 0:02:56]} 6. d4 {[%clk 0:02:59]}  Bxd4 {[%clk 0:02:57]} 7. Qxd4 {[%clk 0:02:58]}  Nc6 {[%clk 0:02:57]} 8. Qd1 {[%clk 0:02:53]}  d6 {[%clk 0:02:58]} 9. Be2 {[%clk 0:02:52]}  O-O {[%clk 0:02:57]} 10. O-O {[%clk 0:02:52]}  Re8 {[%clk 0:02:57]} 11. f3 {[%clk 0:02:49]}  h6 {[%clk 0:02:55]} 12. Be3 {[%clk 0:02:44]}  Be6 {[%clk 0:02:54]} 13. Qd2 {[%clk 0:02:44]}  Nd7 {[%clk 0:02:51]} 14. Nd5 {[%clk 0:02:30]}  Nde5 {[%clk 0:02:43]} 15. Rad1 {[%clk 0:02:25]}  Ng6 {[%clk 0:02:25]} 16. b3 {[%clk 0:02:07]}  f5 {[%clk 0:02:22]} 17. Bd3 {[%clk 0:02:07]}  fxe4 {[%clk 0:02:20]} 18. Bxe4 {[%clk 0:02:08]}  Bf7 {[%clk 0:02:19]} 19. Rfe1 {[%clk 0:01:44]}  Nge5 {[%clk 0:02:17]} 20. Bb1 {[%clk 0:01:21]}  Qd7 {[%clk 0:01:46]} 21. Bxh6 {[%clk 0:01:16]}  gxh6 {[%clk 0:01:33]} 22. Nf6+ {[%clk 0:01:13]} 1-0


[Site "https://www.chess.com"]

[Event "Titled Tuesday Blitz March 22 Early 2022"]
[White "Dahlgren, James Allen"]
[Black "Christensen, Thomas"]
[WhiteFideId "22256873"]
[BlackFideId "1403532"]
[WhiteElo "2100"]
[BlackElo "2269"]
[Result "1-0"]
[Round "07"]
[TimeControl "180+1"]
[Date "2022.03.22"]
[WhiteClock "0:00:17"]
[BlackClock "0:00:01"]

1. d3 {[%clk 0:02:58]}  Nc6 {[%clk 0:02:59]} 2. f4 {[%clk 0:02:59]}  e5 {[%clk 0:02:59]} 3. Nf3 {[%clk 0:03:00]}  d5 {[%clk 0:02:53]} 4. Nc3 {[%clk 0:03:00]}  d4 {[%clk 0:02:51]} 5. Ne4 {[%clk 0:03:00]}  Bd6 {[%clk 0:02:28]} 6. fxe5 {[%clk 0:02:53]}  Bxe5 {[%clk 0:02:26]} 7. Nxe5 {[%clk 0:02:53]}  Nxe5 {[%clk 0:02:26]} 8. e3 {[%clk 0:02:49]}  Bg4 {[%clk 0:02:19]} 9. Be2 {[%clk 0:02:48]}  Bxe2 {[%clk 0:02:13]} 10. Qxe2 {[%clk 0:02:49]}  dxe3 {[%clk 0:01:37]} 11. Bxe3 {[%clk 0:02:50]}  Qd5 {[%clk 0:01:19]} 12. Nc3 {[%clk 0:02:20]}  Qe6 {[%clk 0:01:17]} 13. O-O-O {[%clk 0:02:16]}  O-O-O {[%clk 0:01:03]} 14. Bf4 {[%clk 0:02:02]}  Nxd3+ {[%clk 0:01:02]} 15. Rxd3 {[%clk 0:01:54]}  Nf6 {[%clk 0:00:55]} 16. Qxe6+ {[%clk 0:01:52]}  fxe6 {[%clk 0:00:55]} 17. Re1 {[%clk 0:01:52]}  Rhe8 {[%clk 0:00:51]} 18. Rxd8+ {[%clk 0:01:51]}  Kxd8 {[%clk 0:00:51]} 19. Ne4 {[%clk 0:01:43]}  Nd5 {[%clk 0:00:50]} 20. Bg5+ {[%clk 0:01:36]}  Kc8 {[%clk 0:00:45]} 21. c4 {[%clk 0:01:33]}  Nb4 {[%clk 0:00:44]} 22. Rd1 {[%clk 0:01:02]}  Nxa2+ {[%clk 0:00:43]} 23. Kc2 {[%clk 0:01:02]}  Nb4+ {[%clk 0:00:43]} 24. Kb3 {[%clk 0:01:01]}  Nc6 {[%clk 0:00:40]} 25. Bf4 {[%clk 0:00:48]}  e5 {[%clk 0:00:31]} 26. Be3 {[%clk 0:00:45]}  Na5+ {[%clk 0:00:27]} 27. Kc3 {[%clk 0:00:45]}  Nc6 {[%clk 0:00:27]} 28. b4 {[%clk 0:00:45]}  a6 {[%clk 0:00:26]} 29. Nc5 {[%clk 0:00:41]}  Ne7 {[%clk 0:00:21]} 30. Rf1 {[%clk 0:00:36]}  Ng6 {[%clk 0:00:16]} 31. Rf7 {[%clk 0:00:35]}  Re7 {[%clk 0:00:15]} 32. Rxe7 {[%clk 0:00:35]}  Nxe7 {[%clk 0:00:16]} 33. Kd3 {[%clk 0:00:35]}  Ng6 {[%clk 0:00:14]} 34. Ke4 {[%clk 0:00:34]}  b6 {[%clk 0:00:10]} 35. Nxa6 {[%clk 0:00:34]}  Kb7 {[%clk 0:00:11]} 36. b5 {[%clk 0:00:34]}  c5 {[%clk 0:00:07]} 37. g3 {[%clk 0:00:26]}  Ka7 {[%clk 0:00:06]} 38. Kf5 {[%clk 0:00:23]}  Kb7 {[%clk 0:00:05]} 39. h4 {[%clk 0:00:23]}  Ne7+ {[%clk 0:00:04]} 40. Kxe5 {[%clk 0:00:22]}  Ng6+ {[%clk 0:00:05]} 41. Kf5 {[%clk 0:00:21]}  Kc8 {[%clk 0:00:04]} 42. h5 {[%clk 0:00:20]}  Ne7+ {[%clk 0:00:04]} 43. Ke6 {[%clk 0:00:21]}  Ng8 {[%clk 0:00:05]} 44. Kf7 {[%clk 0:00:18]}  Nf6 {[%clk 0:00:05]} 45. h6 {[%clk 0:00:18]}  Ne4 {[%clk 0:00:01]} 46. hxg7 {[%clk 0:00:18]}  Kb7 {[%clk 0:00:02]} 47. g8=Q {[%clk 0:00:18]}  Nf6 {[%clk 0:00:01]} 48. Qb8# {[%clk 0:00:17]} 1-0


[Site "https://www.chess.com"]

[Event "Titled Tuesday Blitz March 22 Early 2022"]
[White "Dreev, Aleksey"]
[Black "Smirnov, Pavel"]
[WhiteFideId "4100107"]
[BlackFideId "4123425"]
[WhiteElo "2625"]
[BlackElo "2545"]
[Result "0-1"]
[Round "07"]
[TimeControl "180+1"]
[Date "2022.03.22"]
[WhiteClock "0:00:26"]
[BlackClock "0:00:47"]

1. d4 {[%clk 0:03:00]}  d5 {[%clk 0:02:58]} 2. c4 {[%clk 0:03:00]}  e6 {[%clk 0:02:59]} 3. Nc3 {[%clk 0:03:00]}  c6 {[%clk 0:02:59]} 4. e4 {[%clk 0:02:59]}  dxe4 {[%clk 0:02:59]} 5. Nxe4 {[%clk 0:03:00]}  Bb4+ {[%clk 0:03:00]} 6. Nc3 {[%clk 0:03:01]}  e5 {[%clk 0:02:59]} 7. a3 {[%clk 0:02:54]}  Bxc3+ {[%clk 0:02:58]} 8. bxc3 {[%clk 0:02:54]}  Qa5 {[%clk 0:02:58]} 9. Bd2 {[%clk 0:02:53]}  Nf6 {[%clk 0:02:57]} 10. Nf3 {[%clk 0:02:53]}  Nbd7 {[%clk 0:02:52]} 11. Be2 {[%clk 0:02:19]}  O-O {[%clk 0:02:40]} 12. O-O {[%clk 0:02:18]}  Ne4 {[%clk 0:02:39]} 13. Re1 {[%clk 0:02:07]}  Nxc3 {[%clk 0:02:34]} 14. Bf1 {[%clk 0:01:39]}  Nxd1 {[%clk 0:02:02]} 15. Bxa5 {[%clk 0:01:39]}  Nb2 {[%clk 0:02:02]} 16. Bb4 {[%clk 0:01:22]}  Re8 {[%clk 0:01:55]} 17. a4 {[%clk 0:01:07]}  Nb6 {[%clk 0:01:49]} 18. Nxe5 {[%clk 0:00:53]}  Be6 {[%clk 0:01:39]} 19. a5 {[%clk 0:00:35]}  N6xc4 {[%clk 0:01:36]} 20. a6 {[%clk 0:00:35]}  Nxe5 {[%clk 0:01:19]} 21. axb7 {[%clk 0:00:35]}  Rab8 {[%clk 0:01:19]} 22. dxe5 {[%clk 0:00:35]}  Rxb7 {[%clk 0:01:19]} 23. Bc5 {[%clk 0:00:36]}  Bc4 {[%clk 0:01:12]} 24. Rab1 {[%clk 0:00:26]}  Bxf1 {[%clk 0:01:10]} 25. Kxf1 {[%clk 0:00:26]}  Rb5 {[%clk 0:00:58]} 26. Bxa7 {[%clk 0:00:26]}  Nc4 {[%clk 0:00:49]} 27. Bd4 {[%clk 0:00:26]}  Nd2+ {[%clk 0:00:47]} 0-1


[Site "https://www.chess.com"]

[Event "Titled Tuesday Blitz March 22 Early 2022"]
[White "Fiol, Fabrice"]
[Black "Zemerov, Vladimir"]
[WhiteFideId "611670"]
[BlackFideId "4111583"]
[WhiteElo "2473"]
[BlackElo "2277"]
[Result "0-1"]
[Round "07"]
[TimeControl "180+1"]
[Date "2022.03.22"]
[WhiteClock "0:00:08"]
[BlackClock "0:00:49"]

1. e4 {[%clk 0:03:00]}  e5 {[%clk 0:02:59]} 2. Nf3 {[%clk 0:03:00]}  Nc6 {[%clk 0:02:58]} 3. Bc4 {[%clk 0:03:00]}  Nf6 {[%clk 0:02:57]} 4. d3 {[%clk 0:03:01]}  h6 {[%clk 0:02:54]} 5. c3 {[%clk 0:03:01]}  Be7 {[%clk 0:02:53]} 6. Bb3 {[%clk 0:03:00]}  d6 {[%clk 0:02:53]} 7. Nbd2 {[%clk 0:02:59]}  Be6 {[%clk 0:02:53]} 8. Nf1 {[%clk 0:02:59]}  Qd7 {[%clk 0:02:52]} 9. Ng3 {[%clk 0:02:59]}  g5 {[%clk 0:02:46]} 10. Bxe6 {[%clk 0:02:57]}  fxe6 {[%clk 0:02:45]} 11. Qb3 {[%clk 0:02:56]}  O-O-O {[%clk 0:02:41]} 12. Bd2 {[%clk 0:02:55]}  g4 {[%clk 0:02:39]} 13. Ng1 {[%clk 0:02:48]}  h5 {[%clk 0:02:38]} 14. O-O-O {[%clk 0:02:43]}  h4 {[%clk 0:02:38]} 15. N3e2 {[%clk 0:02:40]}  Rdf8 {[%clk 0:02:29]} 16. f3 {[%clk 0:02:40]}  h3 {[%clk 0:02:22]} 17. gxh3 {[%clk 0:02:36]}  gxh3 {[%clk 0:02:22]} 18. Ng3 {[%clk 0:02:31]}  Kb8 {[%clk 0:02:08]} 19. N1e2 {[%clk 0:02:12]}  Nh5 {[%clk 0:02:05]} 20. Nxh5 {[%clk 0:02:09]}  Rxh5 {[%clk 0:02:04]} 21. Ng3 {[%clk 0:02:10]}  Rh4 {[%clk 0:02:01]} 22. Rdf1 {[%clk 0:02:04]}  d5 {[%clk 0:01:58]} 23. Rhg1 {[%clk 0:01:48]}  a6 {[%clk 0:01:57]} 24. Ne2 {[%clk 0:01:41]}  Bc5 {[%clk 0:01:49]} 25. Rg3 {[%clk 0:01:34]}  dxe4 {[%clk 0:01:43]} 26. dxe4 {[%clk 0:01:34]}  Qd3 {[%clk 0:01:40]} 27. Qd1 {[%clk 0:01:19]}  Rd8 {[%clk 0:01:28]} 28. f4 {[%clk 0:01:08]}  Qxe4 {[%clk 0:01:23]} 29. Qe1 {[%clk 0:00:46]}  Qc4 {[%clk 0:01:12]} 30. Kb1 {[%clk 0:00:44]}  e4 {[%clk 0:01:11]} 31. f5 {[%clk 0:00:41]}  e3 {[%clk 0:01:10]} 32. Bc1 {[%clk 0:00:41]}  Qd3+ {[%clk 0:01:09]} 33. Ka1 {[%clk 0:00:41]}  exf5 {[%clk 0:01:07]} 34. Rgf3 {[%clk 0:00:36]}  Ra4 {[%clk 0:01:05]} 35. Rxf5 {[%clk 0:00:30]}  Qc4 {[%clk 0:01:03]} 36. a3 {[%clk 0:00:27]}  Na5 {[%clk 0:00:56]} 37. R1f4 {[%clk 0:00:14]}  Nb3+ {[%clk 0:00:55]} 38. Kb1 {[%clk 0:00:15]}  Qd3+ {[%clk 0:00:54]} 39. Ka2 {[%clk 0:00:14]}  Rxf4 {[%clk 0:00:51]} 40. Rxf4 {[%clk 0:00:14]}  Nd2 {[%clk 0:00:49]} 41. Rf3 {[%clk 0:00:08]}  Qb1# {[%clk 0:00:49]} 0-1


[Site "https://www.chess.com"]

[Event "Titled Tuesday Blitz March 22 Early 2022"]
[White "Fiorito, Fabian"]
[Black "Daneshvar, Bardiya"]
[WhiteFideId "100200"]
[BlackFideId "12576468"]
[WhiteElo "2395"]
[BlackElo "2295"]
[Result "0-1"]
[Round "07"]
[TimeControl "180+1"]
[Date "2022.03.22"]
[WhiteClock "0:00:35"]
[BlackClock "0:00:55"]

1. e4 {[%clk 0:03:00]}  e6 {[%clk 0:02:11]} 2. d4 {[%clk 0:02:59]}  d5 {[%clk 0:02:12]} 3. Nd2 {[%clk 0:03:00]}  Be7 {[%clk 0:02:12]} 4. Ngf3 {[%clk 0:02:56]}  Nf6 {[%clk 0:02:12]} 5. e5 {[%clk 0:02:57]}  Nfd7 {[%clk 0:02:13]} 6. Bd3 {[%clk 0:02:56]}  c5 {[%clk 0:02:13]} 7. c3 {[%clk 0:02:53]}  Nc6 {[%clk 0:02:14]} 8. O-O {[%clk 0:02:53]}  a5 {[%clk 0:02:14]} 9. Qe2 {[%clk 0:02:45]}  cxd4 {[%clk 0:02:13]} 10. cxd4 {[%clk 0:02:45]}  Qb6 {[%clk 0:02:14]} 11. a3 {[%clk 0:02:23]}  Nxd4 {[%clk 0:02:13]} 12. Nxd4 {[%clk 0:02:24]}  Qxd4 {[%clk 0:02:14]} 13. Nf3 {[%clk 0:02:24]}  Qb6 {[%clk 0:02:07]} 14. Rb1 {[%clk 0:02:24]}  Nc5 {[%clk 0:02:06]} 15. Be3 {[%clk 0:02:24]}  Qb3 {[%clk 0:01:59]} 16. Bb5+ {[%clk 0:02:13]}  Bd7 {[%clk 0:01:55]} 17. Bxd7+ {[%clk 0:01:32]}  Nxd7 {[%clk 0:01:55]} 18. Nd2 {[%clk 0:01:30]}  Qa4 {[%clk 0:01:51]} 19. b3 {[%clk 0:01:24]}  Qxa3 {[%clk 0:01:49]} 20. Rfc1 {[%clk 0:01:20]}  O-O {[%clk 0:01:38]} 21. Rc7 {[%clk 0:01:12]}  Rad8 {[%clk 0:01:35]} 22. Bd4 {[%clk 0:01:07]}  Qb4 {[%clk 0:01:29]} 23. Qd3 {[%clk 0:00:58]}  Nc5 {[%clk 0:01:23]} 24. Qe3 {[%clk 0:00:54]}  Na6 {[%clk 0:01:08]} 25. Bc3 {[%clk 0:00:41]}  d4 {[%clk 0:00:58]} 26. Bxb4 {[%clk 0:00:41]}  dxe3 {[%clk 0:00:58]} 27. Bxe7 {[%clk 0:00:35]}  exd2 {[%clk 0:00:55]} 0-1


[Site "https://www.chess.com"]

[Event "Titled Tuesday Blitz March 22 Early 2022"]
[White "Garagulya, Konstantin"]
[Black "Artemenko, Oleg"]
[WhiteFideId "4128931"]
[BlackFideId "14201798"]
[WhiteElo "2329"]
[BlackElo "2287"]
[Result "0-1"]
[Round "07"]
[TimeControl "180+1"]
[Date "2022.03.22"]
[WhiteClock "0:00:07"]
[BlackClock "0:00:59"]

1. d4 {[%clk 0:02:45]}  Nf6 {[%clk 0:02:59]} 2. Nf3 {[%clk 0:02:44]}  e6 {[%clk 0:02:59]} 3. Bg5 {[%clk 0:02:44]}  c5 {[%clk 0:02:58]} 4. Nbd2 {[%clk 0:02:42]}  Nc6 {[%clk 0:02:58]} 5. e3 {[%clk 0:02:41]}  d5 {[%clk 0:02:58]} 6. c3 {[%clk 0:02:39]}  Bd6 {[%clk 0:02:58]} 7. dxc5 {[%clk 0:02:39]}  Bxc5 {[%clk 0:02:58]} 8. Bd3 {[%clk 0:02:39]}  O-O {[%clk 0:02:58]} 9. O-O {[%clk 0:02:40]}  h6 {[%clk 0:02:59]} 10. Bh4 {[%clk 0:02:40]}  Be7 {[%clk 0:02:57]} 11. Qe2 {[%clk 0:02:38]}  e5 {[%clk 0:02:44]} 12. e4 {[%clk 0:02:39]}  dxe4 {[%clk 0:02:43]} 13. Nxe4 {[%clk 0:02:39]}  Nd5 {[%clk 0:02:44]} 14. Bxe7 {[%clk 0:02:37]}  Qxe7 {[%clk 0:02:45]} 15. Bc4 {[%clk 0:02:28]}  Nf4 {[%clk 0:02:44]} 16. Qc2 {[%clk 0:02:29]}  Bf5 {[%clk 0:02:43]} 17. Rfe1 {[%clk 0:02:26]}  Rad8 {[%clk 0:02:43]} 18. Rad1 {[%clk 0:02:24]}  Rxd1 {[%clk 0:02:42]} 19. Qxd1 {[%clk 0:02:25]}  Rd8 {[%clk 0:02:42]} 20. Qb3 {[%clk 0:02:11]}  Na5 {[%clk 0:02:41]} 21. Qa4 {[%clk 0:01:53]}  Nxc4 {[%clk 0:02:39]} 22. Qxc4 {[%clk 0:01:51]}  Nd3 {[%clk 0:02:39]} 23. Re2 {[%clk 0:01:49]}  Nxb2 {[%clk 0:02:34]} 24. Qb5 {[%clk 0:01:23]}  Nd1 {[%clk 0:02:16]} 25. Qb3 {[%clk 0:01:10]}  Qc7 {[%clk 0:02:12]} 26. c4 {[%clk 0:00:48]}  b5 {[%clk 0:02:01]} 27. cxb5 {[%clk 0:00:36]}  Qc1 {[%clk 0:02:00]} 28. Ne1 {[%clk 0:00:30]}  Bxe4 {[%clk 0:01:48]} 29. Rxe4 {[%clk 0:00:29]}  Nc3 {[%clk 0:01:46]} 30. Rxe5 {[%clk 0:00:28]}  Rd1 {[%clk 0:01:44]} 31. Kf1 {[%clk 0:00:27]}  Qd2 {[%clk 0:01:33]} 32. Re8+ {[%clk 0:00:19]}  Kh7 {[%clk 0:01:33]} 33. Qxf7 {[%clk 0:00:19]}  Qd3+ {[%clk 0:01:33]} 34. Kg1 {[%clk 0:00:19]}  Ne2+ {[%clk 0:01:20]} 35. Rxe2 {[%clk 0:00:18]}  Qxe2 {[%clk 0:01:21]} 36. Qf5+ {[%clk 0:00:18]}  Kg8 {[%clk 0:01:21]} 37. Qc8+ {[%clk 0:00:17]}  Kf7 {[%clk 0:01:21]} 38. Qf5+ {[%clk 0:00:18]}  Ke7 {[%clk 0:01:21]} 39. Qc5+ {[%clk 0:00:16]}  Rd6 {[%clk 0:01:16]} 40. Qc7+ {[%clk 0:00:13]}  Ke8 {[%clk 0:01:14]} 41. Qc1 {[%clk 0:00:12]}  Rd1 {[%clk 0:01:10]} 42. Qc8+ {[%clk 0:00:12]}  Ke7 {[%clk 0:01:09]} 43. Qc7+ {[%clk 0:00:12]}  Rd7 {[%clk 0:01:09]} 44. Qc5+ {[%clk 0:00:12]}  Kf7 {[%clk 0:01:07]} 45. Qb4 {[%clk 0:00:12]}  Qd2 {[%clk 0:01:06]} 46. Qc4+ {[%clk 0:00:11]}  Kf8 {[%clk 0:01:06]} 47. Kf1 {[%clk 0:00:10]}  Re7 {[%clk 0:01:03]} 48. Qc8+ {[%clk 0:00:09]}  Kf7 {[%clk 0:01:03]} 49. Qc4+ {[%clk 0:00:10]}  Re6 {[%clk 0:00:59]} 50. Qc7+ {[%clk 0:00:09]}  Kf6 {[%clk 0:00:59]} 51. Qd8+ {[%clk 0:00:07]}  Qxd8 {[%clk 0:00:59]} 0-1


[Site "https://www.chess.com"]